fUST/lending_fUST_20260224
["ID","MTS","AMOUNT","RATE_DAILY","PERIOD"]
[406397463,1771866639228,-687.25769755,0.00014795,2]
[406397465,1771866639238,-854.55318925,0.00014916,2]
[406397467,1771866639248,-2000.0,0.00014916,2]
[406397469,1771866639258,-181.975378,0.00015068,2]
[406397471,1771866639267,-378.43527414,0.00015176,2]
[406397473,1771866639276,-2000.0,0.00015342,2]
[406397475,1771866639286,-500.0,0.00015464,2]
[406397477,1771866639295,-177.0,0.00015486,2]
[406397479,1771866639306,-5197.91232017,0.000157,2]
[406397481,1771866639315,-1500.0,0.0001589,2]
[406397483,1771866639325,-378.43527414,0.00016084,2]
[406397485,1771866639334,-150.79126087,0.00016438,2]
[406397487,1771866639343,-150.0,0.00016438,2]
[406397489,1771866639352,-250.0,0.00016538,2]
[406397491,1771866639361,-400.0,0.00016986,2]
[406397493,1771866639370,-378.43527414,0.00016992,2]
[406397495,1771866639379,-7434.2624074,0.00017033,2]
[406397497,1771866639391,-18022.9626965,0.00017033,2]
[406397499,1771866639400,-1883.3523073,0.00017033,2]
[406397501,1771866639409,-204.0,0.00017486,2]
[406397503,1771866639417,-2000.0,0.000179,2]
[406397505,1771866639432,-378.43527414,0.000179,2]
[406397507,1771866639441,-32403.2276487,0.00018,2]
[406397509,1771866639454,-149131.52503448,0.00018,2]
[406397511,1771866639467,-1427.34267158,0.00018,2]
[406397514,1771866639478,-7329.52555876,0.00018,2]
[406397516,1771866639490,-156613.23354049,0.00018,2]
[406397518,1771866639498,-2000.0,0.00018,2]
[406397520,1771866639507,-2000.0,0.000181,2]
[406397521,1771866639516,-2000.0,0.000182,2]
[406397523,1771866639525,-2000.0,0.000183,2]
[406397525,1771866639534,-1690.918,0.000184,2]
[406397527,1771866639544,-2272.8165936,0.00019,2]
[406397529,1771866639553,-511.4641,0.00019178,2]
[406397532,1771866639562,-511.4641,0.00019178,2]
[406397533,1771866639571,-200.0,0.00019178,2]
[406397536,1771866639580,-511.4641,0.00019178,2]
[406397538,1771866639589,-511.4641,0.00019178,2]
[406397539,1771866639599,-511.46,0.00019178,2]
[406397542,1771866639608,-511.4641,0.00019178,2]
[406397543,1771866639617,-511.4641,0.00019178,2]
[406397546,1771866639627,-511.4641,0.00019178,2]
[406397548,1771866639636,-511.4641,0.00019178,2]
[406397550,1771866639646,-511.4641,0.00019178,2]
[406397552,1771866639655,-1658.8081615,0.00019207,2]
[406397554,1771866639664,-4021.4665528,0.00019207,2]
[406397556,1771866639673,-487.0,0.00019207,2]
[406397558,1771866639683,-487.0,0.00019207,2]
[406397560,1771866639692,-566.05,0.00019207,2]
[406397562,1771866639701,-231.0,0.00019486,2]
[406397564,1771866639713,-511.4641,0.00019589,3]
[406397566,1771866639723,-511.4641,0.00019589,3]
[406397567,1771866639732,-511.4641,0.00019589,3]
[406397570,1771866639741,-511.4641,0.00019589,3]
[406397572,1771866639751,-511.4641,0.00019589,3]
[406397573,1771866639761,-511.4641,0.00019589,3]
[406397576,1771866639770,-511.4641,0.00019589,3]
[406397577,1771866639779,-397.3459,0.00019589,3]
[406397579,1771866639789,-370.1301307,0.00019692,2]
[406397581,1771866639798,-897.3104759,0.00019692,2]
[406397584,1771866639807,-5121.07492161,0.0002,2]
[406397585,1771866639816,-14780.13576161,0.0002,2]
[406397588,1771866639826,-511.4641,0.0002,4]
[406397589,1771866639835,-511.4619,0.0002,4]
[406397592,1771866639844,-511.4641,0.0002,4]
[406397593,1771866639855,-511.4641,0.0002,4]
[406397595,1771866639864,-511.4641,0.0002,4]
[406397597,1771866639874,-511.4641,0.0002,4]
[406397600,1771866639883,-1396.91138223,0.0002061,2]
[406397602,1771866639892,-164.298122,0.0002061,2]
[406397603,1771866639903,-151.0,0.0002061,2]
[406397606,1771866639912,-257.8950444,0.000209,2]
[406397607,1771866639921,-278.95028208,0.00021,2]
[406397609,1771866639930,-50000.0,0.00021,2]
[406397611,1771866639939,-258.0,0.00021486,2]
[406397614,1771866639949,-1045.55821057,0.000215,2]
[406397616,1771866639962,-12933.90370386,0.000215,2]
[406397618,1771866639971,-189.266665,0.000215,2]
[406397619,1771866639980,-1584.87450305,0.00021565,2]
[406397622,1771866639990,-3562.40166424,0.00021565,2]
[406397624,1771866640000,-151.0,0.00021918,2]
[406397626,1771866640009,-151.0,0.00021918,2]
[406397628,1771866640018,-151.0,0.00021918,2]
[406397630,1771866640027,-151.0,0.00021918,2]
[406397632,1771866640036,-151.0,0.00021918,2]
[406397634,1771866640046,-151.0,0.00021918,2]
[406397636,1771866640055,-151.0,0.00021918,2]
[406397638,1771866640064,-151.0,0.00021918,2]
[406397640,1771866640073,-150.0,0.00021918,2]
[406397642,1771866640083,-206.9518388,0.00022042,2]
[406397644,1771866640092,-157.75354124,0.00022086,5]
[406397646,1771866640101,-165.85754082,0.00022086,5]
[406397648,1771866640110,-250.0,0.00022466,2]
[406397650,1771866640120,-1039.46889793,0.000225,2]
[406397652,1771866640129,-607.84870263,0.000227,2]
[406397654,1771866640138,-3685.27631422,0.00023,2]
[406397656,1771866640150,-151.08805252,0.00023014,2]
[406397658,1771866640159,-861.98097637,0.00023195,2]
[406397660,1771866640168,-209.40437684,0.0002331,2]
[406397662,1771866640177,-250.0,0.0002331,2]
[406397664,1771866640186,-217.15233878,0.0002331,2]
[406397666,1771866640195,-250.0,0.0002331,2]
[406397668,1771866640205,-250.0,0.0002331,2]
[406397670,1771866640213,-225.18697532,0.0002331,2]
[406397672,1771866640222,-250.0,0.0002331,2]
[406397673,1771866640231,-250.0,0.0002331,2]
[406397676,1771866640240,-233.51889341,0.0002331,2]
[406397678,1771866640250,-250.0,0.0002331,2]
[406397681,1771866640259,-500.0,0.0002331,2]
[406397683,1771866640268,-242.15909246,0.0002331,2]
[406397685,1771866640277,-250.0,0.0002331,2]
[406397687,1771866640286,-250.0,0.0002331,2]
[406397689,1771866640295,-500.0,0.0002331,2]
[406397691,1771866640304,-251.11897888,0.0002331,2]
[406397693,1771866640313,-250.0,0.0002331,2]
[406397695,1771866640322,-250.0,0.0002331,2]
[406397697,1771866640331,-260.4103811,0.0002331,2]
[406397699,1771866640340,-500.0,0.0002331,2]
[406397701,1771866640348,-250.0,0.0002331,2]
[406397703,1771866640357,-250.0,0.0002331,2]
[406397705,1771866640366,-270.0455652,0.0002331,2]
[406397707,1771866640375,-500.0,0.0002331,2]
[406397709,1771866640385,-250.0,0.0002331,2]
[406397711,1771866640398,-250.0,0.0002331,2]
[406397713,1771866640406,-500.0,0.0002331,2]
[406397715,1771866640415,-280.03725112,0.0002331,2]
[406397717,1771866640424,-250.0,0.0002331,2]
[406397719,1771866640434,-250.0,0.0002331,2]
[406397721,1771866640443,-500.0,0.0002331,2]
[406397723,1771866640453,-500.0,0.0002331,2]
[406397725,1771866640463,-500.0,0.0002331,2]
[406397726,1771866640472,-290.39862941,0.0002331,2]
[406397727,1771866640481,-500.0,0.0002331,2]
[406397728,1771866640490,-250.0,0.0002331,2]
[406397729,1771866640500,-500.0,0.0002331,2]
[406397730,1771866640509,-301.1433787,0.0002331,2]
[406397731,1771866640519,-250.0,0.0002331,2]
[406397732,1771866640528,-500.0,0.0002331,2]
[406397733,1771866640537,-500.0,0.0002331,2]
[406397734,1771866640547,-250.0,0.0002331,2]
[406397735,1771866640556,-500.0,0.0002331,2]
[406397736,1771866640565,-250.0,0.0002331,2]
[406397737,1771866640574,-500.0,0.0002331,2]
[406397738,1771866640583,-500.0,0.0002331,2]
[406397739,1771866640593,-500.0,0.0002331,2]
[406397740,1771866640603,-250.0,0.0002331,2]
[406397741,1771866640612,-500.0,0.0002331,2]
[406397742,1771866640621,-500.0,0.0002331,2]
[406397743,1771866640630,-500.0,0.0002331,2]
[406397744,1771866640640,-250.0,0.0002331,2]
[406397745,1771866640649,-500.0,0.0002331,2]
[406397746,1771866640659,-500.0,0.0002331,2]
[406397747,1771866640668,-500.0,0.0002331,2]
[406397748,1771866640677,-500.0,0.0002331,2]
[406397749,1771866640686,-500.0,0.0002331,2]
[406397750,1771866640695,-591.06032845,0.0002331,2]
[406397751,1771866640705,-500.0,0.0002331,2]
[406397752,1771866640714,-500.0,0.0002331,2]
[406397753,1771866640724,-500.0,0.0002331,2]
[406397754,1771866640733,-500.0,0.0002331,2]
[406397755,1771866640742,-250.0,0.0002331,2]
[406397756,1771866640751,-250.0,0.0002331,2]
[406397757,1771866640761,-250.0,0.0002331,2]
[406397758,1771866640770,-250.0,0.0002331,2]
[406397759,1771866640779,-250.0,0.0002331,2]
[406397760,1771866640788,-250.0,0.0002331,2]
[406397761,1771866640798,-250.0,0.0002331,2]
[406397762,1771866640807,-250.0,0.0002331,2]
[406397763,1771866640816,-250.0,0.0002331,2]
[406397764,1771866640826,-250.0,0.0002331,2]
[406397766,1771866640835,-250.0,0.0002331,2]
[406397768,1771866640844,-285.0,0.00023486,2]
[406397769,1771866640853,-49907.68073815,0.00024,2]
[406397770,1771866640862,-1746.69460303,0.00024,2]
[406397771,1771866640871,-468.52267942,0.00024,2]
[406397772,1771866640880,-151.0,0.00024,2]
[406397773,1771866640889,-151.0,0.00024,2]
[406397774,1771866640898,-151.0,0.00024,2]
[406397775,1771866640908,-227.366692,0.00024,2]
[406397776,1771866640917,-2140.28084116,0.00024142,2]
[406397777,1771866640927,-443.33505913,0.00024429,2]
[406397779,1771866640936,-1309.35748935,0.00024429,2]
[406397781,1771866640945,-70186.80600913,0.0002465,2]
[406397782,1771866640955,-517.03187726,0.0002465,2]
[406397784,1771866640964,-151.0,0.0002465,2]
[406397787,1771866640974,-151.0,0.0002465,2]
[406397789,1771866640983,-151.0,0.0002465,2]
[406397791,1771866640992,-200.0,0.00024658,2]
[406397793,1771866641002,-153.0,0.000248,10]
[406397794,1771866641011,-2379.51878535,0.000248,2]
[406397796,1771866641021,-158.63458569,0.0002489,2]
[406397798,1771866641030,-151.0,0.000249,2]
[406397800,1771866641039,-151.0,0.000249,2]
[406397802,1771866641049,-151.0,0.000249,2]
[406397804,1771866641058,-150537.85672336,0.000249,2]
[406397990,1771866643676,-1382.8,0.000249,2]
[406397991,1771866643687,-294.55592829,0.000249,2]
[406397992,1771866643699,-608.29850976,0.000249,2]
[406397993,1771866643764,-771.14628782,0.000249,2]
[406397994,1771866643775,-493.6422938,0.000249,2]
[406397997,1771866644217,-17112.90630912,0.000249,2]
[406397998,1771866644228,-1316.27915126,0.000249,2]
[406397999,1771866644239,-16153.70632488,0.000249,2]
[406398000,1771866644250,-3452.28369231,0.000249,2]
[406398137,1771867533156,-592.58352443,0.00012943,11]
[406398138,1771867535118,-961.63798324,0.00012943,11]
[406398155,1771867630085,-783.1097017,0.00012943,11]
[406398164,1771867773133,-1957.9899767,0.00012944,2]
[406398165,1771867773153,-150.0,0.00013075,2]
[406398166,1771867773171,-607.0,0.00013206,2]
[406398167,1771867773191,-612.96132934,0.00013273,2]
[406398168,1771867773211,-500.0,0.00013273,2]
[406398169,1771867773229,-500.0,0.00013273,2]
[406398170,1771867773249,-500.0,0.00013273,2]
[406398171,1771867773268,-500.0,0.00013273,2]
[406398172,1771867773287,-500.0,0.00013273,2]
[406398173,1771867773309,-500.0,0.00013273,2]
[406398174,1771867773328,-165.78854723,0.00013699,2]
[406398175,1771867773351,-500.0,0.00013699,2]
[406398176,1771867773370,-500.0,0.00013699,2]
[406398177,1771867773389,-550.52979779,0.00013699,2]
[406398178,1771867773407,-23.89166414,0.00013699,2]
[406398237,1771867831492,-500.0,0.00013273,2]
[406398239,1771867831503,-150.0,0.00013486,2]
[406398241,1771867831513,-284.17488002,0.00013699,2]
[406398243,1771867831525,-215.82511998,0.00013699,2]
[406398245,1771867831535,-248.39480553,0.00013699,2]
[406398270,1771867837595,-263.60923734,0.00013699,2]
[406398272,1771867837605,-500.0,0.00013699,2]
[406398274,1771867837615,-170.1790269,0.00013699,2]
[406398276,1771867837624,-500.0,0.00013699,2]
[406398278,1771867837633,-1000.0,0.00013821,2]
[406398280,1771867837643,-1000.0,0.00013821,2]
[406398282,1771867837652,-1000.0,0.00013821,2]
[406398284,1771867837662,-1000.0,0.00013821,2]
[406398285,1771867837671,-1000.0,0.00013821,2]
[406398287,1771867837681,-1000.0,0.00013821,2]
[406398290,1771867837691,-1000.0,0.00014247,2]
[406398292,1771867837701,-977.45824061,0.00014247,2]
[406398295,1771867837714,-22.54175939,0.00014247,2]
[406398298,1771867837724,-1000.0,0.00014247,2]
[406398301,1771867837734,-1000.0,0.00014247,2]
[406398302,1771867837744,-1000.0,0.00014368,2]
[406398306,1771867837755,-1000.0,0.00014368,2]
[406398308,1771867837765,-386.81625403,0.00014368,2]
[406398310,1771867837774,-1000.0,0.00014368,2]
[406398312,1771867837783,-500.0,0.00014368,2]
[406398314,1771867837792,-500.0,0.00014795,2]
[406398316,1771867837804,-1000.0,0.00014795,2]
[406398318,1771867837813,-97.93535164,0.00014795,2]
[406398320,1771867837825,-402.06464836,0.00014795,2]
[406398322,1771867837834,-1000.0,0.00014795,2]
[406398324,1771867837842,-198.01686278,0.000149,2]
[406398326,1771867837851,-202.38333379,0.00015068,2]
[406398328,1771867837861,-177.0,0.00015486,2]
[406398330,1771867837871,-686.059485,0.000157,2]
[406398332,1771867837880,-1631.88289015,0.000157,2]
[406398334,1771867837889,-110.70234655,0.00016999,2]
[406398336,1771867837903,-389.29765345,0.00016999,2]
[406398338,1771867837913,-288.93239779,0.00016999,2]
[406398340,1771867837922,-500.0,0.00016999,2]
[406398342,1771867837931,-461.58745973,0.00016999,2]
[406398344,1771867837940,-500.0,0.00016999,2]
[406398346,1771867837950,-500.0,0.00016999,2]
[406398348,1771867837959,-332.38309931,0.00016999,2]
[406398350,1771867837968,-498.51711716,0.00016999,2]
[406398352,1771867837978,-500.0,0.00016999,2]
[406398354,1771867837987,-500.0,0.00016999,2]
[406398355,1771867837996,-500.0,0.00016999,2]
[406398357,1771867838006,-500.0,0.00016999,2]
[406398359,1771867838015,-2381.14822039,0.00017,2]
[406398682,1771867843554,-106.8486648,0.00017,2]
[406398683,1771867843568,-4692.85211049,0.00017,2]
[406398684,1771867843580,-576.12367876,0.00017299,2]
[406398685,1771867843592,-47463.34393553,0.000173,2]
[406398686,1771867843604,-835.01513029,0.000173,2]
[406398705,1771867845617,-704.47451019,0.000173,2]
[406398714,1771867862283,-500.0,0.00014368,2]
[406398715,1771867898156,-1902.71852055,0.00017127,2]
[406398780,1771868845279,-223.83361804,0.00012623,2]
[406398781,1771868849130,-1089.41504854,0.00012623,2]
[406398786,1771868968120,-3686.75133342,0.00012623,2]
[406398787,1771868968145,-150.0,0.0001288,2]
[406398788,1771868968166,-300.0,0.00013007,2]
[406398789,1771868968186,-500.0,0.00013008,2]
[406398790,1771868968207,-444.27967968,0.00013008,2]
[406398791,1771868968228,-500.0,0.00013008,2]
[406398792,1771868968248,-500.0,0.00013008,2]
[406398793,1771868968268,-500.0,0.00013008,2]
[406398794,1771868968288,-500.0,0.00013008,2]
[406398795,1771868968308,-500.0,0.00013008,2]
[406398796,1771868968327,-500.0,0.00013008,2]
[406398797,1771868968346,-500.0,0.00013008,2]
[406398798,1771868968367,-500.0,0.00013008,2]
[406398799,1771868968387,-500.0,0.00013008,2]
[406398800,1771868968407,-500.0,0.00013008,2]
[406398801,1771868968428,-500.0,0.00013008,2]
[406398802,1771868968449,-500.0,0.00013008,2]
[406398803,1771868968469,-500.0,0.00013008,2]
[406398804,1771868968488,-500.0,0.00013008,2]
[406398805,1771868968508,-266.6944135,0.00013008,2]
[406398806,1771868968532,-500.0,0.00013008,2]
[406398807,1771868968552,-199.52851455,0.00013008,2]
[406398808,1771868968575,-604.0,0.00013009,2]
[406398809,1771868968597,-50000.0,0.00013009,2]
[406398810,1771868968619,-50000.0,0.00013271,2]
[406398811,1771868968638,-500.0,0.00013273,2]
[406398812,1771868968657,-500.0,0.00013273,2]
[406398813,1771868968676,-500.0,0.00013273,2]
[406398814,1771868968697,-500.0,0.00013273,2]
[406398815,1771868968717,-465.7033787,0.00013526,2]
[406398816,1771868968736,-8058.9765126,0.00013699,2]
[406398817,1771868968757,-500.0,0.00013699,2]
[406398819,1771868968779,-517.65714536,0.00013699,2]
[406398820,1771868968798,-500.0,0.00013699,2]
[406398821,1771868968816,-500.0,0.00013699,2]
[406398822,1771868968835,-500.0,0.00013699,2]
[406398823,1771868968856,-482.61507458,0.00013699,2]
[406398824,1771868968875,-500.0,0.00013699,2]
[406398825,1771868968894,-500.0,0.00013699,2]
[406398826,1771868968915,-500.0,0.00013699,2]
[406398827,1771868968935,-500.0,0.00013699,2]
[406398828,1771868968958,-190.96290534,0.00013821,2]
[406398829,1771868968979,-820.82047287,0.00013821,2]
[406398830,1771868969001,-1000.0,0.00013821,2]
[406398831,1771868969025,-1000.0,0.00013821,2]
[406398832,1771868969049,-164.62566258,0.00013973,2]
[406398833,1771868969069,-500.0,0.00014246,2]
[406398834,1771868969090,-544.0029797,0.00014247,2]
[406398835,1771868969113,-150.44666625,0.00014247,2]
[406398836,1771868969135,-1000.0,0.00014247,2]
[406398837,1771868969155,-1000.0,0.00014247,2]
[406398838,1771868969174,-507.50724426,0.00014247,2]
[406398839,1771868969192,-367.994216,0.00014247,2]
[406398840,1771868969211,-389.16745886,0.00014247,2]
[406398841,1771868969231,-1000.0,0.00014247,2]
[406398842,1771868969250,-420.0,0.00014264,2]
[406398843,1771868969269,-500.0,0.00014368,2]
[406398844,1771868969289,-500.0,0.00014368,2]
[406398845,1771868969309,-591.37533657,0.00014368,2]
[406398846,1771868969333,-1500.0,0.00014368,2]
[406398847,1771868969353,-177.0,0.0001488,2]
[406398848,1771868969374,-2000.0,0.00014916,2]
[406398849,1771868969395,-230.075994,0.00015068,2]
[406398850,1771868969430,-2500.0,0.00015464,2]
[406398851,1771868969450,-587.0,0.00015643,2]
[406398852,1771868969471,-500.0,0.00015699,2]
[406398853,1771868969490,-500.0,0.00015699,2]
[406398854,1771868969510,-7134.0905281,0.000157,2]
[406398899,1771869031715,-500.0,0.00013698,2]
[406398901,1771869031725,-424.69999999,0.00014368,2]
[406398906,1771869031771,-75.30000001,0.00014368,2]
[406398908,1771869031780,-2214.75687718,0.00015543,2]
[406398910,1771869031791,-265.01741593,0.00015543,2]
[406398911,1771869031801,-177.27797984,0.00015912,2]
[406398913,1771869031811,-259.09,0.00016,2]
[406398915,1771869031821,-922.45153927,0.00016012,2]
[406398949,1771869037806,-2077.54846073,0.00016012,2]
[406398951,1771869037815,-187.24411526,0.00016437,2]
[406398953,1771869037824,-2644.96887925,0.0001646,2]
[406398955,1771869037834,-300.0,0.00016498,2]
[406398957,1771869037843,-3021.2480413,0.00016499,2]
[406398959,1771869037852,-500.0,0.00016535,2]
[406398960,1771869037861,-500.0,0.00016536,2]
[406398962,1771869037871,-500.0,0.00016536,2]
[406398975,1771869037978,-7678.4601409,0.00016537,2]
[406398977,1771869037988,-7678.460141,0.00016537,2]
[406398979,1771869037997,-500.0,0.0001656,2]
[406398981,1771869038006,-204.0,0.0001688,2]
[406398983,1771869038016,-283.7800358,0.00016999,2]
[406398985,1771869038025,-157.85434824,0.0001706,2]
[406398987,1771869038034,-284.13782683,0.0001706,2]
[406398989,1771869038044,-505.13391436,0.0001706,2]
[406398991,1771869038055,-266.62236342,0.0001706,2]
[406398993,1771869038067,-736.51358776,0.0001706,2]
[406398995,1771869038077,-409.17421542,0.0001706,2]
[406398997,1771869038086,-154.214515,0.0001706,2]
[406398999,1771869038096,-500.0,0.00017299,2]
[406399001,1771869038107,-20650.3063391,0.000173,2]
[406399003,1771869038117,-179.63349178,0.000173,2]
[406399005,1771869038126,-151.0,0.000173,2]
[406399007,1771869038135,-151.0,0.000173,2]
[406399009,1771869038144,-151.0,0.000173,2]
[406399011,1771869038153,-151.41911708,0.000173,2]
[406399013,1771869038164,-445.26068863,0.00017565,2]
[406399015,1771869038173,-231.06308636,0.00017565,2]
[406399017,1771869038181,-923.32809308,0.00017565,2]
[406399019,1771869038191,-150.0,0.00017808,2]
[406399021,1771869038200,-150.0,0.00017808,2]
[406399023,1771869038210,-500.0,0.00017999,2]
[406399025,1771869038219,-500.0,0.00017999,2]
[406399027,1771869038228,-500.0,0.00017999,2]
[406399029,1771869038237,-500.0,0.00017999,2]
[406399031,1771869038247,-500.0,0.00017999,2]
[406399033,1771869038256,-500.0,0.00017999,2]
[406399035,1771869038267,-500.0,0.00017999,2]
[406399037,1771869038278,-174.15774451,0.00018,2]
[406399039,1771869038287,-141645.62393034,0.00018,2]
[406399041,1771869038297,-420.0,0.00018029,2]
[406399043,1771869038307,-500.0,0.00018132,2]
[406399045,1771869038316,-16436.6069729,0.00018133,2]
[406399047,1771869038326,-153.0146214,0.00018356,2]
[406399049,1771869038335,-250.0,0.00018356,2]
[406399051,1771869038344,-1713.2960409,0.00018634,2]
[406399053,1771869038354,-187.24411526,0.00018695,2]
[406399055,1771869038363,-231.0,0.0001888,2]
[406399057,1771869038372,-350.0,0.00018904,2]
[406399059,1771869038382,-1713.2960409,0.00019032,2]
[406399061,1771869038391,-382.28802,0.00019102,2]
[406399063,1771869038401,-150.4190827,0.00019116,2]
[406399065,1771869038410,-511.4641,0.00019178,2]
[406399067,1771869038419,-511.46,0.00019178,2]
[406399068,1771869038428,-151.0,0.00019178,2]
[406399070,1771869038438,-151.0,0.00019178,2]
[406399073,1771869038448,-168.238708,0.00019178,2]
[406399074,1771869038458,-156.0,0.00019178,2]
[406399077,1771869038468,-500.0,0.00019283,2]
[406399079,1771869038478,-450.0,0.00019452,2]
[406399081,1771869038488,-388.22189628,0.00019459,4]
[406399082,1771869038498,-500.0,0.00019511,2]
[406399083,1771869038506,-382.2880199,0.00019588,2]
[406399084,1771869038515,-511.4641,0.00019589,3]
[406399085,1771869038524,-587.0,0.00019701,2]
[406399086,1771869038533,-167.684233,0.00019833,2]
[406399087,1771869038546,-7980.0,0.0002,2]
[406399088,1771869038555,-151.0,0.0002,2]
[406399089,1771869038564,-151.0,0.0002,2]
[406399090,1771869038573,-151.0,0.0002,2]
[406399091,1771869038582,-151.0,0.0002,2]
[406399092,1771869038591,-153.792354,0.0002,2]
[406399093,1771869038600,-347.0619,0.0002,4]
[406399094,1771869038609,-600.0,0.0002,2]
[406399095,1771869038618,-900.84188256,0.00020053,4]
[406399096,1771869038626,-167.684233,0.00020668,2]
[406399097,1771869038635,-151.0,0.00020668,2]
[406399098,1771869038643,-151.0,0.00020668,2]
[406399099,1771869038653,-258.0,0.0002088,2]
[406399100,1771869038661,-151.0,0.00020923,2]
[406399101,1771869038670,-189.74408693,0.00020923,2]
[406399102,1771869038679,-250.0,0.00020923,2]
[406399103,1771869038688,-250.0,0.00020923,2]
[406399104,1771869038696,-250.0,0.00020923,2]
[406399105,1771869038706,-250.0,0.00020923,2]
[406399106,1771869038714,-250.0,0.00020923,2]
[406399107,1771869038723,-500.0,0.00020923,2]
[406399108,1771869038732,-250.0,0.00020923,2]
[406399109,1771869038740,-250.0,0.00020923,2]
[406399111,1771869038750,-500.0,0.00020923,2]
[406399112,1771869038760,-250.0,0.00020923,2]
[406399113,1771869038769,-250.0,0.00020923,2]
[406399115,1771869038779,-500.0,0.00020923,2]
[406399118,1771869038788,-250.0,0.00020923,2]
[406399119,1771869038797,-209.40437684,0.00020923,2]
[406399121,1771869038806,-500.0,0.00020923,2]
[406399123,1771869038816,-250.0,0.00020923,2]
[406399125,1771869038825,-217.15233878,0.00020923,2]
[406399127,1771869038834,-500.0,0.00020923,2]
[406399129,1771869038843,-250.0,0.00020923,2]
[406399131,1771869038852,-225.18697532,0.00020923,2]
[406399133,1771869038861,-250.0,0.00020923,2]
[406399135,1771869038871,-250.0,0.00020923,2]
[406399137,1771869038880,-233.51889341,0.00020923,2]
[406399139,1771869038892,-250.0,0.00020923,2]
[406399142,1771869038905,-242.15909246,0.00020923,2]
[406399144,1771869038919,-500.0,0.00020923,2]
[406399147,1771869038932,-250.0,0.00020923,2]
[406399149,1771869038944,-251.11897888,0.00020923,2]
[406399151,1771869038956,-250.0,0.00020923,2]
[406399153,1771869038967,-260.4103811,0.00020923,2]
[406399156,1771869038979,-500.0,0.00020923,2]
[406399158,1771869038992,-250.0,0.00020923,2]
[406399160,1771869039003,-270.0455652,0.00020923,2]
[406399162,1771869039016,-500.0,0.00020923,2]
[406399165,1771869039028,-280.03725112,0.00020923,2]
[406399167,1771869039041,-500.0,0.00020923,2]
[406399169,1771869039052,-500.0,0.00020923,2]
[406399171,1771869039068,-290.39862941,0.00020923,2]
[406399174,1771869039081,-500.0,0.00020923,2]
[406399176,1771869039092,-500.0,0.00020923,2]
[406399178,1771869039103,-301.1433787,0.00020923,2]
[406399180,1771869039115,-500.0,0.00020923,2]
[406399182,1771869039126,-500.0,0.00020923,2]
[406399185,1771869039141,-500.0,0.00020923,2]
[406399187,1771869039153,-500.0,0.00020923,2]
[406399189,1771869039166,-500.0,0.00020923,2]
[406399192,1771869039180,-500.0,0.00020923,2]
[406399194,1771869039193,-500.0,0.00020923,2]
[406399196,1771869039205,-500.0,0.00020923,2]
[406399199,1771869039220,-500.0,0.00020923,2]
[406399201,1771869039233,-500.0,0.00020923,2]
[406399204,1771869039246,-500.0,0.00020923,2]
[406399206,1771869039256,-500.0,0.00020923,2]
[406399208,1771869039269,-500.0,0.00020923,2]
[406399210,1771869039281,-500.0,0.00020923,2]
[406399212,1771869039294,-500.0,0.00020923,2]
[406399215,1771869039305,-250.0,0.00020923,2]
[406399217,1771869039318,-250.0,0.00020923,2]
[406399219,1771869039330,-250.0,0.00020923,2]
[406399221,1771869039341,-250.0,0.00020923,2]
[406399224,1771869039353,-250.0,0.00020923,2]